bitfinex-derivatives/quotes_SOLF0:USTF0_20241206
["timestamp","ask_amount","ask_price","bid_price","bid_amount"]
[1733521770535,2.0907,238.71,238.7,6.4607723]
[1733521771636,2.0908,238.7,238.68,6.4607723]
[1733521771832,6.4607723,238.75,238.68,6.4607723]
[1733521772029,6.4607723,238.73,238.61,4.658]
[1733521772237,2.091,238.67,238.65,6.4607723]
[1733521773239,2.26,238.7,238.6,2.0916]
[1733521773534,2.26,238.7,238.52,2.3323]
[1733521773535,6.4607723,238.65,238.58,6.4607723]
[1733521773740,8.7207723,238.65,238.58,6.4607723]
[1733521774539,2.0916,238.61,238.58,6.4607723]
[1733521775342,8.7207723,238.65,238.58,6.4607723]
[1733521775839,2.26,238.65,238.6,6.4607723]
[1733521776643,2.0915,238.62,238.6,6.4607723]
[1733521777943,2.0917,238.6,238.55,2.092]
[1733521778153,8.7207723,238.65,238.58,6.4607723]
[1733521778542,2.0915,238.62,238.58,6.4607723]
[1733521778945,6.4607723,238.63,238.46,4.9222]
[1733521779245,6.4607723,238.61,238.52,6.4607723]
[1733521779546,6.4607723,238.59,238.52,6.4607723]
[1733521779737,2.26,238.6,238.52,6.4607723]
[1733521779738,8.7207723,238.6,238.52,6.4607723]
[1733521780748,2.0922,238.55,238.52,6.4607723]
[1733521785150,2.0922,238.54,238.5,2.0925]
[1733521785348,2.0922,238.54,238.51,6.4607723]
[1733521785848,2.0922,238.54,238.5,2.0925]
[1733521786150,6.4607723,238.54,238.38,2.5905]
[1733521786348,6.4607723,238.52,238.43,6.4607723]
[1733521786545,6.4607723,238.52,238.38,2.5905]
[1733521786748,6.4607723,238.52,238.43,6.4607723]
[1733521787249,6.4607723,238.52,238.38,2.5905]
[1733521787250,6.4607723,238.5,238.42,6.4607723]
[1733521787651,8.7207723,238.5,238.42,6.4607723]
[1733521788552,2.0929,238.47,238.42,8.5539723]
[1733521788746,8.7207723,238.5,238.42,6.4607723]
[1733521789750,2.0927,238.48,238.43,2.0931]
[1733521792156,2.0928,238.47,238.42,2.0932]
[1733521792357,6.4607723,238.46,238.38,6.4607723]
[1733521793655,2.0931,238.43,238.39,2.0935]
[1733521793858,6.4607723,238.46,238.39,2.0935]
[1733521795761,2.0931,238.44,238.39,2.0935]
[1733521796660,2.0931,238.44,238.4,6.4607723]
[1733521797864,2.0931,238.43,238.4,6.4607723]
[1733521799161,2.16,238.45,238.3,2.427]
[1733521799360,2.16,238.45,238.37,2.0936]
[1733521799662,2.16,238.45,238.38,6.4607723]
[1733521800261,2.0932,238.43,238.38,8.5542723]
[1733521801864,2.0932,238.42,238.38,8.5542723]
[1733521804465,2.0934,238.41,238.38,6.4607723]
[1733521804659,8.6207723,238.45,238.38,6.4607723]
[1733521804966,8.6207723,238.45,238.37,6.4607723]
[1733521805766,2.0934,238.4,238.37,6.4607723]
[1733521807659,2.16,238.45,238.39,6.4607723]
[1733521808165,2.0932,238.43,238.39,6.4607723]
[1733521808557,2.16,238.45,238.39,6.4607723]
[1733521808867,2.16,238.47,238.41,8.5540723]
[1733521809063,2.16,238.47,238.41,6.4607723]
[1733521810063,2.093,238.45,238.41,8.5540723]
[1733521811570,2.093,238.45,238.42,2.0932]
[1733521811766,4.2527,238.48,238.41,6.4607723]
[1733521811965,3.18232,238.54,238.45,6.4607723]
[1733521812264,8.6207723,238.53,238.47,2.0928]
[1733521812668,2.0926,238.49,238.44,6.4607723]
[1733521813668,2.0926,238.49,238.45,2.0929]
[1733521814361,2.0927,238.48,238.44,2.093]
[1733521814561,6.4607723,238.46,238.33,2.16907126]
[1733521814769,3.18232,238.54,238.35,6.4607723]
[1733521814770,6.4607723,238.43,238.35,6.4607723]
[1733521815070,2.16,238.42,238.35,6.4607723]
[1733521816664,2.5872,238.45,238.37,6.4607723]
[1733521816861,2.16,238.44,238.37,6.4607723]
[1733521817271,2.0932,238.42,238.38,2.0936]
[1733521817571,2.16,238.44,238.37,6.4607723]
[1733521817767,4.2531,238.44,238.39,8.5541723]
[1733521818571,2.0931,238.44,238.39,8.5541723]
[1733521819670,2.3708,238.53,238.43,6.4607723]
[1733521819870,2.16,238.52,238.45,6.4607723]
[1733521820271,2.0926,238.5,238.45,2.0929]
[1733521820870,2.0926,238.5,238.44,6.4607723]
[1733521820871,2.0926,238.5,238.46,2.0929]
[1733521821271,2.0926,238.5,238.46,8.5536723]
[1733521821475,0.83192,238.54,238.46,6.4607723]
[1733521821678,0.83192,238.54,238.48,2.0927]
[1733521821679,2.0924,238.52,238.48,2.0927]
[1733521821871,2.0924,238.52,238.48,8.5534723]
[1733521822070,2.16,238.53,238.48,6.4607723]
[1733521822269,4.2523,238.53,238.49,2.0926]
[1733521822473,2.0923,238.53,238.49,2.0926]
[1733521822875,0.83192,238.54,238.47,2.0927]
[1733521822876,2.0923,238.52,238.47,2.0927]
[1733521823077,2.0923,238.52,238.47,8.5534723]
[1733521823274,2.0923,238.52,238.4,2.16]
[1733521823470,2.0923,238.52,238.47,6.4607723]
[1733521824779,2.0923,238.52,238.47,8.5534723]
[1733521826277,6.4607723,238.5,238.36,5.0693]
[1733521826472,6.4607723,238.48,238.41,6.4607723]
[1733521826675,2.06,238.49,238.41,6.4607723]
[1733521827282,4.1527,238.49,238.44,2.093]
[1733521828379,2.0927,238.48,238.44,2.093]
[1733521829983,2.0924,238.51,238.47,2.0928]
[1733521830484,6.4607723,238.53,238.45,6.4607723]
[1733521831680,6.4607723,238.53,238.39,2.4513]
[1733521831879,6.4607723,238.53,238.45,6.4607723]
[1733521832183,2.0926,238.5,238.45,8.5536723]
[1733521832584,6.4607723,238.53,238.45,8.5536723]
[1733521833488,2.0926,238.49,238.45,8.5536723]
[1733521835085,2.06,238.54,238.45,6.4607723]
[1733521835286,8.5207723,238.54,238.47,2.0927]
[1733521836380,8.5207723,238.54,238.47,2.0928]
[1733521837581,6.4607723,238.54,238.47,8.5535723]
[1733521837786,2.0924,238.51,238.47,8.5535723]
[1733521837983,6.4607723,238.5,238.41,2.06]
[1733521838181,6.4607723,238.44,238.32,2.18419573]
[1733521838388,6.4607723,238.4,238.33,4.56168022]
[1733521838594,8.5207723,238.4,238.31,8.5548723]
[1733521839082,6.4607723,238.38,238.23,2.18419573]
[1733521839285,6.4607723,238.38,238.21,7.4161]
[1733521839286,2.06,238.4,238.3,6.4607723]
[1733521839688,6.4607723,238.39,238.3,6.4607723]
[1733521839884,6.4607723,238.39,238.3,8.5550723]
[1733521840582,7.355,238.49,238.36,8.5544723]
[1733521840786,6.4607723,238.47,238.38,6.4607723]
[1733521841383,2.06,238.48,238.4,6.4607723]
[1733521841587,8.5207723,238.48,238.4,6.4607723]
[1733521841889,2.093,238.45,238.4,6.4607723]
[1733521842485,8.5207723,238.48,238.4,6.4607723]
[1733521842783,6.4607723,238.43,238.33,2.3532]
[1733521842989,6.4607723,238.43,238.31,6.4607723]
[1733521842990,2.06,238.43,238.31,6.4607723]
[1733521843188,6.4607723,238.41,238.33,6.4607723]
[1733521844280,6.4607723,238.41,238.26,7.656]
[1733521844281,6.4607723,238.39,238.3,8.5207723]
[1733521844480,2.06,238.38,238.3,6.4607723]
[1733521845286,2.0939,238.35,238.3,6.4607723]
[1733521846483,2.0939,238.35,238.27,2.0945]
[1733521847182,2.0939,238.35,238.28,2.0944]
[1733521848181,2.0939,238.34,238.28,2.0944]
[1733521851386,2.06,238.33,238.21,10.1335334]
[1733521851589,2.06,238.32,238.21,10.1335334]
[1733521851886,2.0943,238.3,238.24,2.0948]
[1733521852386,2.06,238.31,238.21,10.1335334]
[1733521852582,2.0944,238.29,238.24,2.0948]
[1733521854590,2.06,238.31,238.21,10.1335334]
[1733521854791,2.06,238.31,238.24,2.0948]
[1733521855597,2.0944,238.29,238.24,2.0948]
[1733521856000,2.06,238.31,238.22,2.0949]
[1733521856194,2.0944,238.28,238.22,2.0949]
[1733521856896,2.0944,238.28,238.23,2.0949]
[1733521857290,2.0944,238.28,238.21,10.1335334]
[1733521858497,2.2,238.31,238.24,10.1335334]
[1733521859594,2.2,238.31,238.26,2.0946]
[1733521859595,2.0943,238.3,238.26,2.0946]
[1733521861702,2.0942,238.31,238.26,2.0946]
[1733521862702,2.0943,238.3,238.26,2.0946]
[1733521866400,2.0945,238.28,238.23,2.0949]
[1733521866795,2.0945,238.28,238.19,10.1335334]
[1733521867199,2.0944,238.29,238.24,2.0948]
[1733521868599,2.2,238.32,238.27,6.48679937]
[1733521868905,7.466,238.37,238.3,6.48679937]
[1733521869110,2.0939,238.35,238.3,6.48679937]
[1733521869306,2.0939,238.35,238.32,6.48679937]
[1733521869506,2.5139,238.44,238.34,6.48679937]
[1733521869701,2.2,238.43,238.38,6.48679937]
[1733521870700,2.0933,238.41,238.38,6.48679937]
[1733521870907,2.2,238.47,238.4,6.48679937]
[1733521871411,2.0929,238.46,238.4,6.48679937]
[1733521871610,2.2,238.47,238.4,6.48679937]
[1733521872604,2.093,238.45,238.39,2.0935]
[1733521873210,2.2,238.47,238.38,10.12342803]
[1733521873211,2.0931,238.44,238.38,10.12342803]
[1733521874205,2.0929,238.46,238.38,10.12342803]
[1733521874802,2.0929,238.46,238.4,2.0934]
[1733521875006,2.0931,238.44,238.35,12.32342803]
[1733521875211,2.2,238.47,238.35,12.32342803]
[1733521876213,2.0931,238.43,238.37,2.0936]
[1733521876414,2.0931,238.43,238.35,12.32342803]
[1733521876714,2.093,238.44,238.38,2.0935]
[1733521877012,2.2,238.47,238.38,2.0935]
[1733521877215,2.2,238.43,238.33,2.3403]
[1733521878007,2.0939,238.35,238.29,2.0943]
[1733521878206,2.5868,238.41,238.29,2.0943]
[1733521878903,2.0939,238.35,238.29,2.0943]
[1733521879313,2.0939,238.35,238.3,2.0942]
[1733521882106,2.094,238.34,238.28,2.0944]
[1733521882310,2.094,238.34,238.27,10.12342803]
[1733521882311,2.2,238.38,238.27,10.12342803]
[1733521883616,2.0938,238.36,238.31,2.0941]
[1733521884112,2.0938,238.36,238.32,2.0941]
[1733521884507,2.0937,238.37,238.32,2.0941]
[1733521884910,2.0937,238.37,238.33,2.094]
[1733521886210,2.0937,238.37,238.27,10.12342803]
[1733521886414,2.0937,238.37,238.32,2.0941]
[1733521888117,2.0937,238.37,238.27,10.12342803]
[1733521888118,2.094,238.33,238.28,2.0944]
[1733521888315,2.2,238.38,238.23,2.5622]
[1733521888519,2.4075,238.4,238.28,10.12342803]
[1733521888713,2.0938,238.36,238.3,2.0942]
[1733521888907,2.0938,238.36,238.28,10.12342803]
[1733521889413,2.16,238.39,238.28,10.12342803]
[1733521889716,2.16,238.39,238.31,10.12342803]
[1733521890118,2.16,238.39,238.34,2.0938]
[1733521890516,4.2535,238.39,238.34,2.0938]
[1733521890712,2.16,238.39,238.34,2.0938]
[1733521891615,2.16,238.46,238.38,10.12342803]
[1733521892214,2.0931,238.44,238.39,2.0934]
[1733521892413,4.7812,238.53,238.38,10.12342803]
[1733521892609,6.47961977,238.48,238.41,6.47961977]
[1733521893118,2.16,238.49,238.41,6.47961977]
[1733521894720,2.0928,238.47,238.41,6.47961977]
[1733521895416,3.09619,238.5,238.42,2.0932]
[1733521895626,2.0927,238.48,238.43,6.47961977]
[1733521896117,2.0927,238.48,238.39,2.16]
[1733521896118,6.47961977,238.48,238.4,2.0933]
[1733521896322,2.093,238.45,238.4,2.0933]
[1733521896523,6.47961977,238.48,238.4,2.0933]
[1733521896818,6.47961977,238.48,238.41,6.47961977]
[1733521897521,2.0929,238.46,238.41,6.47961977]
[1733521898021,2.0929,238.46,238.43,6.47961977]
[1733521901323,3.09619,238.5,238.45,6.47961977]
[1733521901626,3.09619,238.5,238.39,2.16]
[1733521901627,3.09619,238.5,238.43,6.47961977]
[1733521902330,2.0928,238.48,238.43,6.47961977]
[1733521902820,2.0928,238.48,238.45,6.47961977]
[1733521905924,2.0929,238.46,238.39,2.16]
[1733521906116,9.57580977,238.5,238.39,2.16]
[1733521906319,9.57580977,238.5,238.42,6.47961977]
[1733521906720,2.093,238.45,238.42,6.47961977]
[1733521907925,3.09619,238.5,238.44,6.47961977]
[1733521908623,2.0927,238.48,238.44,6.47961977]
[1733521909426,2.0927,238.48,238.46,6.47961977]
[1733521909622,0.93619,238.5,238.46,6.47961977]
[1733521909828,0.93619,238.5,238.48,6.47961977]
[1733521910424,0.93619,238.5,238.49,2.09652396]
[1733521910826,2.0924,238.51,238.49,2.09652396]
[1733521911220,2.0923,238.52,238.5,6.47961977]
[1733521912429,2.0923,238.52,238.49,2.09652396]
[1733521916331,2.0924,238.51,238.49,2.09652396]
[1733521920236,2.16,238.55,238.49,2.09652396]
[1733521920438,2.0925,238.5,238.49,2.09652396]
[1733521922738,4.1725,238.5,238.49,1e-08]
[1733521925446,2.0933,238.42,238.38,6.47961977]
[1733521925645,2.0933,238.42,238.4,6.47961977]
[1733521929147,2.0932,238.43,238.4,6.47961977]
[1733521929348,2.08,238.49,238.42,6.47961977]
[1733521929542,2.08,238.49,238.44,6.47961977]
[1733521929947,2.0929,238.46,238.44,6.47961977]
[1733521930252,2.08,238.49,238.44,6.47961977]
[1733521932250,2.08,238.49,238.42,6.47961977]
[1733521933254,6.47961977,238.48,238.4,6.47961977]
[1733521933655,2.0932,238.42,238.4,6.47961977]
[1733521937655,2.0933,238.41,238.37,2.0936]
[1733521937856,2.0933,238.41,238.4,6.47961977]
[1733521938556,2.08,238.44,238.4,6.47961977]
[1733521939756,2.08,238.44,238.42,6.47961977]
[1733521940554,2.0931,238.43,238.42,6.47961977]
[1733521943155,2.08,238.45,238.37,2.0936]
[1733521943359,2.08,238.45,238.39,6.47961977]
[1733521943963,2.0934,238.4,238.39,6.47961977]
[1733521945058,2.08,238.45,238.37,6.47961977]
[1733521945258,6.47961977,238.42,238.18,4.17832773]
[1733521945462,2.08,238.41,238.33,6.47961977]
[1733521945665,2.0935,238.4,238.35,6.47961977]
[1733521945864,2.08,238.41,238.35,6.47961977]
[1733521946164,2.0937,238.37,238.33,8.57361977]
[1733521946468,2.08,238.41,238.33,6.47961977]
[1733521946666,2.08,238.41,238.25,2.08]
[1733521946667,2.08,238.41,238.35,6.47961977]
[1733521946864,2.0937,238.37,238.35,6.47961977]
[1733521947063,4.1737,238.37,238.35,6.47961977]
[1733521947264,2.08,238.37,238.35,6.47961977]
[1733521947667,2.0937,238.36,238.35,6.47961977]
[1733521950067,4.1536,238.38,238.35,6.47961977]
[1733521950370,2.06,238.38,238.35,6.47961977]
[1733521950866,2.06,238.38,238.25,2.08]
[1733521950867,2.06,238.38,238.37,6.47961977]
[1733521951364,6.47961977,238.45,238.37,6.47961977]
[1733521951559,2.06,238.44,238.37,6.47961977]
[1733521952770,2.0936,238.38,238.37,6.47961977]
[1733521953170,2.06,238.39,238.35,6.47961977]
[1733521953766,2.0937,238.37,238.35,6.47961977]
[1733521960177,2.06,238.39,238.35,6.47961977]
[1733521960371,4.1534,238.4,238.38,6.47961977]
[1733521960572,2.0934,238.4,238.38,6.47961977]
[1733521962681,6.47961977,238.41,238.33,6.47961977]
[1733521963079,2.0937,238.36,238.33,6.47961977]
[1733521963279,2.0937,238.36,238.35,6.47961977]
[1733521963873,2.0936,238.38,238.35,6.47961977]
[1733521964477,2.0937,238.37,238.35,6.47961977]
[1733521965183,2.0937,238.36,238.35,6.47961977]
[1733521973286,2.0937,238.36,238.33,8.57351977]
[1733521973884,2.0937,238.36,238.33,2.0939]
[1733521974079,2.0937,238.36,238.33,8.57351977]
[1733521974884,2.0937,238.36,238.32,2.0941]
[1733521975185,2.0937,238.36,238.27,6.47961977]
[1733521975186,2.06,238.36,238.27,6.47961977]
[1733521975383,6.47961977,238.35,238.21,4.9248]
[1733521975583,2.0943,238.3,238.26,6.47961977]
[1733521975789,2.06,238.31,238.26,6.47961977]
[1733521976690,2.0944,238.29,238.26,6.47961977]
[1733521977387,2.0944,238.29,238.28,6.47961977]
[1733521977988,2.0943,238.3,238.28,6.47961977]
[1733521978788,2.0943,238.3,238.29,6.47961977]
[1733521979583,2.06,238.31,238.29,6.47961977]
[1733521979979,2.04,238.37,238.29,6.47961977]
[1733521980190,2.3885,238.39,238.32,6.47961977]
[1733521980385,8.51961977,238.38,238.21,7.2867]
[1733521980582,2.0943,238.31,238.29,6.47961977]
[1733521981085,8.51961977,238.38,238.29,6.47961977]
[1733521981881,2.0941,238.33,238.29,6.47961977]
[1733521982783,2.0941,238.33,238.29,8.57391977]
[1733521983787,8.51961977,238.38,238.29,8.57391977]
[1733521983993,2.0941,238.32,238.29,8.57391977]
[1733521984589,2.0939,238.35,238.31,8.57371977]
[1733521985092,2.04,238.38,238.21,7.2867]
[1733521985392,2.04,238.38,238.3,6.47961977]
[1733521985393,2.0938,238.36,238.3,6.47961977]
[1733521985697,2.04,238.38,238.3,6.47961977]
[1733521986187,2.094,238.33,238.3,6.47961977]
[1733521986688,2.04,238.38,238.31,2.0942]
[1733521986887,2.0939,238.35,238.32,6.47961977]
[1733521988290,2.0939,238.35,238.32,8.57371977]
[1733521989694,2.0938,238.36,238.32,8.57371977]
[1733521989988,2.0938,238.36,238.25,2.04]
[1733521989989,2.04,238.39,238.34,6.47961977]
[1733521990389,2.0937,238.37,238.34,6.47961977]
[1733521990891,2.04,238.39,238.33,2.094]
[1733521991089,2.04,238.39,238.32,8.57371977]
[1733521991090,2.0937,238.37,238.32,8.57371977]
[1733521991396,2.04,238.39,238.32,8.57371977]
[1733521992797,2.0938,238.36,238.32,8.57371977]
[1733521998495,2.0938,238.36,238.32,6.47961977]
[1733521999000,2.04,238.39,238.32,6.47961977]
[1733521999302,2.0938,238.35,238.32,6.47961977]
[1733522000693,6.47961977,238.38,238.25,2.04]
[1733522000895,6.47961977,238.38,238.29,6.47961977]
[1733522001096,2.0942,238.32,238.29,6.47961977]
[1733522001706,2.0942,238.31,238.29,6.47961977]
[1733522005709,8.51961977,238.34,238.22,2.0949]
[1733522006005,6.47961977,238.32,238.24,6.47961977]
[1733522006207,6.47961977,238.32,238.2,2.0951]
[1733522006208,2.0947,238.25,238.2,2.0951]
[1733522006408,2.0947,238.25,237.94,191.0]
[1733522006409,2.04,238.28,238.22,6.47961977]
[1733522006605,2.04,238.27,238.22,6.47961977]
[1733522007212,2.0949,238.23,238.22,6.47961977]
[1733522008910,2.04,238.27,238.22,6.47961977]
[1733522008911,2.0948,238.24,238.22,6.47961977]
[1733522010105,2.04,238.28,238.22,6.47961977]
[1733522010311,2.04,238.28,238.25,6.47961977]
[1733522011711,2.0946,238.27,238.25,6.47961977]
[1733522012714,2.0944,238.3,238.25,6.47961977]
[1733522013014,8.51961977,238.32,238.23,6.47961977]
[1733522013606,2.0945,238.28,238.23,8.57451977]
[1733522013913,8.51961977,238.32,238.15,2.04]
[1733522014103,8.51961977,238.32,238.23,6.47961977]
[1733522014104,2.0943,238.3,238.23,6.47961977]
[1733522014310,8.51961977,238.32,238.23,6.47961977]
[1733522015115,2.04,238.32,238.27,6.47961977]
[1733522015613,2.0943,238.3,238.27,6.47961977]
[1733522018314,2.0943,238.3,238.29,6.47961977]
[1733522019020,2.0943,238.3,238.27,6.47961977]
[1733522019222,2.04,238.34,238.27,6.47961977]
[1733522019416,2.0942,238.32,238.27,6.47961977]
[1733522019816,2.04,238.34,238.29,6.47961977]
[1733522020218,1.06837,238.36,238.31,6.47961977]
[1733522020417,3.10837,238.36,238.31,6.47961977]
[1733522021615,2.0938,238.35,238.31,8.57381977]
[1733522022524,2.0941,238.32,238.27,2.0945]
[1733522022713,2.0941,238.32,238.3,6.47961977]
[1733522022917,3.10837,238.36,238.3,6.47961977]
[1733522024021,2.0939,238.35,238.3,8.57381977]
[1733522025414,1.06837,238.36,238.34,6.47961977]
[1733522025614,3.10837,238.36,238.2,2.04]
[1733522025814,6.47961977,238.35,238.27,6.47961977]
[1733522026024,6.47961977,238.3,238.21,6.47961977]
[1733522026225,2.04,238.29,238.21,6.47961977]
[1733522026817,2.0946,238.27,238.21,6.47961977]
[1733522027626,2.0946,238.26,238.21,6.47961977]
[1733522031124,2.0948,238.25,238.21,6.47961977]
[1733522031327,2.04,238.29,238.21,6.47961977]
[1733522032019,2.0948,238.25,238.2,2.0990764]
[1733522032223,2.0948,238.25,238.21,6.47961977]
[1733522033135,2.0948,238.25,238.2,2.0990764]
[1733522033325,6.47961977,238.28,238.21,6.47961977]
[1733522033526,2.0948,238.24,238.21,6.47961977]
[1733522035220,6.47961977,238.28,238.2,2.0990764]
[1733522035525,2.04,238.29,238.2,2.0990764]
[1733522035526,2.0949,238.23,238.2,2.0990764]
[1733522036330,2.095,238.22,238.2,2.0990764]
[1733522039426,2.0951,238.21,238.2,2.0990764]
[1733522042035,6.47961977,238.22,238.1,6.47961977]
[1733522042229,6.47961977,238.17,238.08,6.47961977]
[1733522042431,2.0958,238.13,238.04,2.4366]
[1733522042637,6.47961977,238.15,238.08,6.47961977]
[1733522042934,6.47961977,238.15,238.06,6.47961977]
[1733522043132,6.47961977,238.15,238.04,2.4366]
[1733522043133,2.0962,238.08,238.04,2.4366]
[1733522043332,6.47961977,238.05,237.92,4.51521188]
[1733522043542,6.47961977,238.05,237.68,17.39706504]
[1733522043543,6.47961977,238.01,237.93,1.74368588]
[1733522043737,2.0973,237.96,237.9,6.47961977]
[1733522043937,2.04,237.98,237.94,6.47961977]
[1733522044235,2.04,238.0,237.94,6.47961977]
[1733522044938,2.04,238.0,237.96,6.47961977]
[1733522045233,2.04,238.0,237.94,6.47961977]
[1733522045829,2.04,238.0,237.95,6.47961977]
[1733522046233,2.04,238.0,237.88,2.04]
[1733522046234,2.04,238.0,237.92,2.0975]
[1733522046643,2.04,238.0,237.94,6.47961977]
[1733522049142,2.04,238.0,237.94,8.57701977]
[1733522049937,2.5863,238.06,237.96,6.47961977]
[1733522050139,4.1365,238.05,237.98,6.47961977]
[1733522050338,9.06591977,238.06,237.86,2.04]
[1733522050546,8.51961977,238.04,237.97,6.47961977]
[1733522050950,2.04,238.04,237.99,6.47961977]
[1733522052342,2.04,238.04,237.99,8.57661977]
[1733522052343,4.1366,238.04,237.99,8.57661977]
[1733522053442,4.1366,238.04,238.0,2.0969]
[1733522053443,2.04,238.04,238.0,2.0969]
[1733522053639,9.06591977,238.06,238.0,2.0969]
[1733522053844,2.04,238.05,238.0,2.0969]
[1733522054238,2.04,238.04,238.0,2.0968]
[1733522054441,2.04,238.04,238.01,6.47961977]
[1733522054843,2.04,238.04,238.0,2.0968]
[1733522055244,6.47961977,238.02,237.84,2.3751]
[1733522055449,6.47961977,238.02,237.94,6.47961977]
[1733522056342,2.0969,238.01,237.94,8.57701977]
[1733522056949,2.0969,238.01,237.95,2.0973]
[1733522057352,2.0969,238.0,237.95,2.0973]
[1733522057547,2.04,237.99,237.95,2.0973]
[1733522057953,2.04,237.99,237.94,6.47961977]
[1733522058155,4.137,237.99,237.94,6.47961977]
[1733522059755,4.137,237.99,237.94,8.57701977]
[1733522060257,2.04,237.99,237.85,2.04]
[1733522060453,4.137,237.99,237.93,6.47961977]
[1733522060960,2.0971,237.98,237.94,2.0974]
[1733522061162,2.0971,237.98,237.85,2.04]
[1733522061462,2.0971,237.98,237.94,6.47961977]
[1733522062361,2.097,238.0,237.94,6.47961977]
[1733522062556,2.04,237.99,237.94,6.47961977]
[1733522063460,2.097,238.0,237.94,6.47961977]
[1733522063658,2.04,237.99,237.95,2.0973]
[1733522064463,6.47961977,237.98,237.84,2.3751]
[1733522064654,6.47961977,237.98,237.89,6.47961977]
[1733522065154,6.47961977,237.98,237.84,2.3751]
[1733522065155,2.0973,237.96,237.92,2.0976]
[1733522065862,2.0973,237.96,237.91,8.57731977]
[1733522066066,2.0973,237.95,237.91,8.57731977]
[1733522066662,2.0975,237.94,237.9,2.0978]
[1733522066860,2.04,237.94,237.9,8.57741977]
[1733522067563,2.04,237.94,237.92,6.47961977]
[1733522068569,2.04,237.94,237.92,8.57721977]
[1733522068864,2.4388,238.01,237.92,6.47961977]
[1733522069063,2.04,238.0,237.92,6.47961977]
[1733522069462,2.0972,237.97,237.93,2.0974]
[1733522070163,2.04,238.0,237.92,6.47961977]
[1733522070360,2.0973,237.96,237.92,8.57721977]
[1733522070666,6.47961977,237.99,237.91,6.47961977]
[1733522070864,2.0974,237.95,237.91,2.0977]
[1733522071067,2.0974,237.95,237.92,6.47961977]
[1733522072470,2.0974,237.95,237.92,8.57721977]
[1733522072965,2.0973,237.96,237.92,8.57721977]
[1733522073166,2.04,238.0,237.93,2.0975]
[1733522073369,2.04,238.0,237.92,6.47961977]
[1733522073561,8.91841977,238.01,237.92,6.47961977]
[1733522073562,2.097,237.99,237.92,6.47961977]
[1733522073765,2.04,237.98,237.92,6.47961977]
[1733522074470,2.04,237.98,237.95,2.0973]
[1733522078971,2.097,237.99,237.95,2.0973]
[1733522079166,4.137,237.99,237.95,2.0973]
[1733522079363,2.5206,238.06,237.94,6.47961977]
[1733522079568,2.3526,238.1,238.02,6.47961977]
[1733522079771,2.04,238.09,238.02,6.47961977]
[1733522080071,2.0963,238.08,238.04,2.0965]
[1733522080272,2.04,238.09,238.02,6.47961977]
[1733522081067,2.04,238.09,238.04,6.47961977]
[1733522081268,4.1361,238.09,238.06,6.47961977]
[1733522081674,2.04,238.09,238.06,6.47961977]
[1733522082574,2.096,238.1,238.06,6.47961977]
[1733522083471,2.096,238.1,238.05,6.47961977]
[1733522086768,2.0958,238.13,238.07,6.47961977]
[1733522087074,2.04,238.13,238.07,6.47961977]
[1733522087671,2.0959,238.12,238.07,6.47961977]
[1733522089468,2.096,238.1,238.0,2.04]
[1733522089668,2.096,238.1,238.06,6.47961977]
[1733522090471,2.04,238.13,238.06,6.47961977]
[1733522090668,2.096,238.11,238.06,6.47961977]
[1733522091578,2.0962,238.08,237.96,7.405]
[1733522091877,2.04,238.13,237.97,2.04]
[1733522092077,6.47961977,238.11,238.02,6.47961977]
[1733522093481,2.0964,238.06,238.02,6.47961977]
[1733522094776,2.0965,238.05,238.0,6.47961977]
[1733522095080,2.0965,238.05,238.01,6.47961977]
[1733522095776,6.47961977,238.07,237.97,6.47961977]
[1733522095980,6.47961977,238.05,237.95,6.47961977]
[1733522096172,6.47961977,238.03,237.95,6.47961977]
[1733522096371,2.04,238.02,237.95,6.47961977]
[1733522096777,2.0972,237.98,237.95,6.47961977]
[1733522097972,2.097,237.99,237.95,6.47961977]
[1733522098178,2.04,238.02,237.95,6.47961977]
[1733522099171,2.04,238.02,237.9,2.3978]